fUST/lending_fUST_20250520
["ID","MTS","AMOUNT","RATE_DAILY","PERIOD"]
[361745739,1747752640707,-430.0,0.00019178,2]
[361745741,1747752640716,-499.23,0.00019178,2]
[361745743,1747752640726,-538.24,0.00019178,2]
[361745745,1747752640736,-469.28,0.00019178,2]
[361745747,1747752640745,-430.0,0.00019178,2]
[361745749,1747752640755,-477.31,0.00019178,2]
[361745751,1747752640765,-1126.95,0.00019178,2]
[361745753,1747752640776,-571.74,0.00019178,2]
[361745755,1747752640786,-430.0,0.00019178,2]
[361745757,1747752640796,-155.0,0.00019178,2]
[361745759,1747752640806,-153.0,0.00019178,2]
[361745761,1747752640815,-153.0,0.00019178,2]
[361745763,1747752640825,-153.0,0.00019178,2]
[361745765,1747752640834,-153.0,0.00019178,2]
[361745766,1747752640843,-153.0,0.00019178,2]
[361745768,1747752640852,-153.0,0.00019178,2]
[361745770,1747752640863,-153.0,0.00019178,2]
[361745772,1747752640872,-153.0,0.00019178,2]
[361745774,1747752640882,-153.0,0.00019178,2]
[361745776,1747752640892,-153.0,0.00019178,2]
[361745778,1747752640902,-153.0,0.00019178,2]
[361745779,1747752640912,-153.0,0.00019178,2]
[361745781,1747752640922,-153.0,0.00019178,2]
[361745783,1747752640932,-153.0,0.00019178,2]
[361745785,1747752640943,-153.0,0.00019178,2]
[361745787,1747752640953,-153.0,0.00019178,2]
[361745789,1747752640962,-153.0,0.00019178,2]
[361745790,1747752640973,-153.0,0.00019178,2]
[361745792,1747752640982,-153.0,0.00019178,2]
[361745794,1747752640992,-153.0,0.00019178,2]
[361745796,1747752641002,-153.0,0.00019178,2]
[361745798,1747752641011,-153.0,0.00019178,2]
[361745799,1747752641021,-153.0,0.00019178,2]
[361745801,1747752641031,-166.0,0.00019178,2]
[361745802,1747752641042,-928.661834,0.00019178,2]
[361745804,1747752641051,-207.0,0.00019178,3]
[361745806,1747752641061,-500.0,0.00019218,2]
[361745808,1747752641071,-3389.92254385,0.00019248,2]
[361745810,1747752641081,-500.0,0.000193,2]
[361745812,1747752641092,-500.0,0.000193,2]
[361745814,1747752641102,-500.0,0.000193,2]
[361745815,1747752641112,-534.51176235,0.000193,2]
[361745816,1747752641122,-500.0,0.000193,2]
[361745817,1747752641132,-500.0,0.000193,2]
[361745818,1747752641142,-500.0,0.000193,2]
[361745819,1747752641152,-526.87597477,0.000193,2]
[361745820,1747752641162,-500.0,0.000193,2]
[361745821,1747752641172,-500.0,0.000193,2]
[361745822,1747752641182,-500.0,0.000193,2]
[361745823,1747752641192,-163.22358017,0.000193,2]
[361745824,1747752641204,-500.0,0.000193,2]
[361745825,1747752641215,-151.0,0.000193,2]
[361745826,1747752641225,-500.0,0.000193,2]
[361745827,1747752641235,-500.0,0.000193,2]
[361745828,1747752641246,-500.0,0.000193,2]
[361745829,1747752641255,-600.0,0.000193,2]
[361745830,1747752641265,-151.0,0.000193,2]
[361745831,1747752641275,-823.0,0.00019303,2]
[361745832,1747752641285,-151.0,0.00019329,2]
[361745833,1747752641295,-151.0,0.00019329,2]
[361745834,1747752641306,-66379.87163736,0.00019329,2]
[361745835,1747752641323,-9117.77831948,0.00019329,2]
[361745836,1747752641335,-10463.34814222,0.00019329,2]
[361745837,1747752641348,-824.4925739,0.00019329,2]
[361745838,1747752641440,-151.0,0.00016986,2]
[361745839,1747752641450,-151.0,0.00017182,2]
[361745840,1747752641460,-28.154,0.0001726,2]
[361745841,1747752641507,-122.846,0.0001726,2]
[361745842,1747752641517,-151.0,0.00017534,2]
[361745843,1747752641526,-1504.150692,0.00019329,2]
[361745858,1747752643091,-1526.86965393,0.00019329,2]
[361745876,1747752645958,-2533.20000001,0.00019136,2]
[361745877,1747752646074,-414.65519892,0.00019136,2]
[361745878,1747752646085,-10183.48898111,0.00019329,2]
[361745879,1747752646094,-4192.6307124,0.00019348,2]
[361745883,1747753045994,151.0,0.00013,2]
[361745884,1747753046246,312.0,0.0002739,120]
[361745885,1747753070857,160.0,0.00019,30]
[361745887,1747753299571,1096.0,0.000273,120]
[361746010,1747753653644,-414.65519892,0.0001523,2]
[361746011,1747753653672,-1200.0,0.00015384,2]
[361746012,1747753653695,-300.0,0.00015384,2]
[361746013,1747753653719,-300.0,0.00015384,2]
[361746014,1747753653745,-8785.34480108,0.00015385,2]
[361746123,1747753832289,-223.409874,0.00013699,2]
[361746125,1747753832299,-659.35964882,0.00015385,2]
[361746127,1747753832308,-146.28634426,0.0001548,2]
[361746129,1747753832320,-469.27245664,0.0001548,2]
[361746131,1747753832329,-250.0,0.00015528,2]
[361746133,1747753832338,-300.0,0.00016328,2]
[361746135,1747753832348,-300.0,0.00016328,2]
[361746137,1747753832358,-1200.0,0.00016328,2]
[361746139,1747753832368,-24900.0,0.00016329,2]
[361746141,1747753832378,-973.47295939,0.00016337,2]
[361746143,1747753832387,-160.0,0.00016437,2]
[361746145,1747753832397,-500.0,0.00016437,2]
[361746147,1747753832406,-500.0,0.00016437,2]
[361746149,1747753832416,-500.0,0.00016437,2]
[361746151,1747753832425,-386.04301695,0.00016437,2]
[361746153,1747753832434,-500.0,0.00016437,2]
[361746155,1747753832444,-228.40889402,0.00016437,2]
[361746156,1747753832453,-500.0,0.00016437,2]
[361746158,1747753832463,-500.0,0.00016437,2]
[361746160,1747753832473,-500.0,0.00016437,2]
[361746162,1747753832482,-500.0,0.00016437,2]
[361746164,1747753832491,-500.0,0.00016437,2]
[361746166,1747753832501,-500.0,0.00016437,2]
[361746168,1747753832511,-500.0,0.00016437,2]
[361746170,1747753832520,-322.13539997,0.00016437,2]
[361746172,1747753832530,-500.0,0.00016437,2]
[361746174,1747753832539,-500.0,0.00016437,2]
[361746176,1747753832549,-500.0,0.00016437,2]
[361746178,1747753832559,-262.91275185,0.00016437,2]
[361746180,1747753832568,-500.0,0.00016437,2]
[361746182,1747753832578,-500.0,0.00016437,2]
[361746184,1747753832588,-500.0,0.00016437,2]
[361746186,1747753832597,-251.4347502,0.00016437,2]
[361746188,1747753832607,-151.0,0.00016438,2]
[361746190,1747753832617,-430.0,0.00016438,2]
[361746192,1747753832627,-405.89950643,0.00016438,2]
[361746194,1747753832637,-370.0,0.00016438,2]
[361746195,1747753832647,-400.0,0.00016438,2]
[361746197,1747753832656,-430.0,0.00016438,2]
[361746199,1747753832666,-402.9165845,0.00016438,2]
[361746201,1747753832676,-410.71119106,0.00016438,2]
[361746203,1747753832686,-430.0,0.00016438,2]
[361746205,1747753832696,-400.0,0.00016438,2]
[361746207,1747753832707,-210.43938365,0.00016438,2]
[361746210,1747753832716,-545.66010842,0.00016438,2]
[361746212,1747753832727,-440.4572721,0.00016438,2]
[361746213,1747753832737,-400.0,0.00016438,2]
[361746215,1747753832746,-400.0,0.00016438,2]
[361746217,1747753832756,-400.0,0.00016438,2]
[361746219,1747753832766,-400.0,0.00016438,2]
[361746221,1747753832775,-400.0,0.00016438,2]
[361746223,1747753832784,-424.08461145,0.00016438,2]
[361746225,1747753832794,-400.0,0.00016438,2]
[361746226,1747753832803,-400.0,0.00016438,2]
[361746227,1747753832814,-400.0,0.00016438,2]
[361746228,1747753832823,-450.0,0.00016438,2]
[361746229,1747753832833,-152.60960254,0.00016438,2]
[361746230,1747753832842,-430.0,0.00016438,2]
[361746231,1747753832851,-400.0,0.00016438,2]
[361746232,1747753832861,-450.0,0.00016438,2]
[361746233,1747753832870,-430.0,0.00016438,2]
[361746234,1747753832879,-400.0,0.00016438,2]
[361746235,1747753832889,-405.97175513,0.00016438,2]
[361746236,1747753832898,-400.0,0.00016438,2]
[361746237,1747753832908,-450.0,0.00016438,2]
[361746238,1747753832917,-430.0,0.00016438,2]
[361746239,1747753832927,-430.0,0.00016438,2]
[361746240,1747753832936,-430.0,0.00016438,2]
[361746241,1747753832945,-549.08,0.00016438,2]
[361746242,1747753832955,-475.57,0.00016438,2]
[361746243,1747753832967,-500.0,0.00016438,2]
[361746244,1747753832980,-500.0,0.00016438,2]
[361746245,1747753832990,-171.87722874,0.00016438,2]
[361746246,1747753833001,-461.23,0.00016438,2]
[361746247,1747753833011,-506.46,0.00016438,2]
[361746248,1747753833020,-430.0,0.00016438,2]
[361746249,1747753833030,-546.7536063,0.00016438,2]
[361746250,1747753833041,-430.0,0.00016438,2]
[361746251,1747753833051,-450.0,0.00016438,2]
[361746252,1747753833061,-450.0,0.00016438,2]
[361746253,1747753833071,-400.0,0.00016438,2]
[361746254,1747753833081,-450.0,0.00016438,2]
[361746255,1747753833092,-430.0,0.00016438,2]
[361746256,1747753833103,-430.0,0.00016438,2]
[361746257,1747753833112,-413.09,0.00016438,2]
[361746258,1747753833121,-517.93,0.00016438,2]
[361746259,1747753833131,-802.98,0.00016438,2]
[361746260,1747753833141,-112.98659033,0.00016438,2]
[361746261,1747753833158,-317.01340967,0.00016438,2]
[361746262,1747753833167,-450.0,0.00016438,2]
[361746263,1747753833177,-402.09002681,0.00016438,2]
[361746264,1747753833187,-1098.54,0.00016438,2]
[361746265,1747753833197,-430.0,0.00016438,2]
[361746266,1747753833206,-430.0,0.00016438,2]
[361746267,1747753833216,-430.0,0.00016438,2]
[361746268,1747753833225,-430.0,0.00016438,2]
[361746269,1747753833235,-430.0,0.00016438,2]
[361746270,1747753833245,-430.0,0.00016438,2]
[361746271,1747753833254,-1724.98,0.00016438,2]
[361746272,1747753833264,-430.0,0.00016438,2]
[361746273,1747753833273,-168.09462662,0.00016438,2]
[361746274,1747753833283,-430.0,0.00016438,2]
[361746275,1747753833292,-430.0,0.00016438,2]
[361746276,1747753833302,-430.0,0.00016438,2]
[361746277,1747753833311,-430.0,0.00016438,2]
[361746278,1747753833320,-430.0,0.00016438,2]
[361746279,1747753833330,-430.0,0.00016438,2]
[361746280,1747753833339,-430.0,0.00016438,2]
[361746281,1747753833348,-430.0,0.00016438,2]
[361746282,1747753833358,-430.0,0.00016438,2]
[361746283,1747753833367,-707.57,0.00016438,2]
[361746284,1747753833377,-400.0,0.00016438,2]
[361746285,1747753833388,-2982.33,0.00016438,2]
[361746286,1747753833398,-426.02,0.00016438,2]
[361746287,1747753833407,-430.0,0.00016438,2]
[361746288,1747753833417,-230.87201217,0.00016438,2]
[361746289,1747753833427,-896.57,0.00016438,2]
[361746290,1747753833436,-430.0,0.00016438,2]
[361746291,1747753833446,-358.45962418,0.00016438,2]
[361746292,1747753833456,-430.0,0.00016438,2]
[361746293,1747753833465,-430.0,0.00016438,2]
[361746294,1747753833475,-430.0,0.00016438,2]
[361746295,1747753833485,-738.18,0.00016438,2]
[361746296,1747753833494,-734.47,0.00016438,2]
[361746297,1747753833504,-430.0,0.00016438,2]
[361746298,1747753833514,-2183.46,0.00016438,2]
[361746299,1747753833523,-523.34985123,0.00016438,2]
[361746300,1747753833533,-450.0,0.00016438,2]
[361746301,1747753833543,-430.0,0.00016438,2]
[361746302,1747753833553,-430.0,0.00016438,2]
[361746303,1747753833562,-999.29,0.00016438,2]
[361746304,1747753833572,-430.0,0.00016438,2]
[361746305,1747753833582,-603.08,0.00016438,2]
[361746306,1747753833591,-430.0,0.00016438,2]
[361746307,1747753833601,-430.0,0.00016438,2]
[361746308,1747753833610,-505.97,0.00016438,2]
[361746309,1747753833620,-430.0,0.00016438,2]
[361746310,1747753833629,-563.26,0.00016438,2]
[361746311,1747753833639,-430.0,0.00016438,2]
[361746312,1747753833649,-430.0,0.00016438,2]
[361746313,1747753833659,-1590.48,0.00016438,2]
[361746314,1747753833668,-506.25609039,0.00016438,2]
[361746315,1747753833677,-155.0,0.00016438,3]
[361746316,1747753833687,-151.0,0.0001658,2]
[361746317,1747753833697,-207.4,0.0001658,2]
[361746318,1747753833706,-755.8811112,0.00016612,2]
[361746319,1747753833716,-151.0,0.00016712,2]
[361746320,1747753833725,-470.72224834,0.00016712,2]
[361746321,1747753833734,-420.0,0.00016712,2]
[361746322,1747753833744,-224.91,0.00016712,2]
[361746323,1747753833753,-420.0,0.00016712,2]
[361746324,1747753833762,-430.0,0.00016712,2]
[361746325,1747753833772,-430.0,0.00016712,2]
[361746326,1747753833782,-360.28291869,0.00016712,2]
[361746327,1747753833793,-346.38,0.00016712,2]
[361746328,1747753833804,-475.57,0.00016712,2]
[361746329,1747753833814,-430.0,0.00016712,2]
[361746330,1747753833824,-430.0,0.00016712,2]
[361746331,1747753833834,-430.0,0.00016712,2]
[361746332,1747753833844,-430.0,0.00016712,2]
[361746333,1747753833854,-517.93,0.00016712,2]
[361746334,1747753833863,-802.98,0.00016712,2]
[361746335,1747753833873,-430.0,0.00016712,2]
[361746336,1747753833883,-1098.54,0.00016712,2]
[361746337,1747753833893,-430.0,0.00016712,2]
[361746338,1747753833903,-430.0,0.00016712,2]
[361746339,1747753833913,-430.0,0.00016712,2]
[361746340,1747753833923,-430.0,0.00016712,2]
[361746341,1747753833933,-239.67,0.00016712,2]
[361746342,1747753833943,-1724.98,0.00016712,2]
[361746343,1747753833953,-430.0,0.00016712,2]
[361746344,1747753833963,-516.50965051,0.00016712,2]
[361746345,1747753833977,-430.0,0.00016712,2]
[361746346,1747753833986,-430.0,0.00016712,2]
[361746347,1747753834006,-430.0,0.00016712,2]
[361746348,1747753834019,-430.0,0.00016712,2]
[361746349,1747753834029,-430.0,0.00016712,2]
[361746350,1747753834040,-430.0,0.00016712,2]
[361746351,1747753834051,-430.0,0.00016712,2]
[361746352,1747753834061,-430.0,0.00016712,2]
[361746353,1747753834071,-707.57,0.00016712,2]
[361746355,1747753834081,-2982.33,0.00016712,2]
[361746356,1747753834090,-430.0,0.00016712,2]
[361746357,1747753834100,-430.0,0.00016712,2]
[361746358,1747753834112,-896.57,0.00016712,2]
[361746359,1747753834122,-430.0,0.00016712,2]
[361746360,1747753834131,-495.51188369,0.00016712,2]
[361746361,1747753834144,-430.0,0.00016712,2]
[361746362,1747753834154,-738.18,0.00016712,2]
[361746363,1747753834165,-734.47,0.00016712,2]
[361746364,1747753834179,-430.0,0.00016712,2]
[361746365,1747753834190,-2183.46,0.00016712,2]
[361746366,1747753834199,-430.0,0.00016712,2]
[361746367,1747753834209,-430.0,0.00016712,2]
[361746368,1747753834219,-999.29,0.00016712,2]
[361746369,1747753834229,-430.0,0.00016712,2]
[361746370,1747753834238,-603.08,0.00016712,2]
[361746371,1747753834247,-430.0,0.00016712,2]
[361746372,1747753834257,-430.0,0.00016712,2]
[361746373,1747753834267,-505.97,0.00016712,2]
[361746374,1747753834277,-430.0,0.00016712,2]
[361746375,1747753834286,-563.26,0.00016712,2]
[361746376,1747753834298,-228.0,0.00016712,2]
[361746377,1747753834308,-1590.48,0.00016712,2]
[361746378,1747753834318,-5182.41492985,0.000169,2]
[361746379,1747753834328,-151.0,0.00016935,2]
[361746380,1747753834337,-151.0,0.00016986,2]
[361746381,1747753834347,-430.0,0.00016986,2]
[361746382,1747753834356,-430.0,0.00016986,2]
[361746383,1747753834366,-475.57,0.00016986,2]
[361746384,1747753834375,-430.0,0.00016986,2]
[361746385,1747753834385,-430.0,0.00016986,2]
[361746386,1747753834395,-432.2953512,0.00016986,2]
[361746387,1747753834404,-430.0,0.00016986,2]
[361746388,1747753834414,-517.93,0.00016986,2]
[361746389,1747753834424,-802.98,0.00016986,2]
[361746390,1747753834434,-430.0,0.00016986,2]
[361746391,1747753834444,-1098.54,0.00016986,2]
[361746392,1747753834454,-430.0,0.00016986,2]
[361746393,1747753834464,-430.0,0.00016986,2]
[361746394,1747753834473,-430.0,0.00016986,2]
[361746395,1747753834483,-430.0,0.00016986,2]
[361746396,1747753834493,-1724.98,0.00016986,2]
[361746397,1747753834502,-430.0,0.00016986,2]
[361746398,1747753834512,-430.0,0.00016986,2]
[361746399,1747753834522,-430.0,0.00016986,2]
[361746400,1747753834533,-430.0,0.00016986,2]
[361746401,1747753834544,-430.0,0.00016986,2]
[361746402,1747753834553,-430.0,0.00016986,2]
[361746403,1747753834563,-499.18468336,0.00016986,2]
[361746404,1747753834573,-430.0,0.00016986,2]
[361746405,1747753834583,-430.0,0.00016986,2]
[361746406,1747753834593,-707.57,0.00016986,2]
[361746407,1747753834604,-2982.33,0.00016986,2]
[361746408,1747753834615,-232.01,0.00016986,2]
[361746409,1747753834631,-430.0,0.00016986,2]
[361746410,1747753834642,-896.57,0.00016986,2]
[361746411,1747753834652,-430.0,0.00016986,2]
[361746412,1747753834662,-430.0,0.00016986,2]
[361746413,1747753834673,-738.18,0.00016986,2]
[361746414,1747753834684,-734.47,0.00016986,2]
[361746415,1747753834695,-430.0,0.00016986,2]
[361746416,1747753834705,-2183.46,0.00016986,2]
[361746417,1747753834716,-430.0,0.00016986,2]
[361746418,1747753834727,-430.0,0.00016986,2]
[361746419,1747753834739,-999.29,0.00016986,2]
[361746420,1747753834749,-180.41325775,0.00016986,2]
[361746421,1747753834765,-249.58674225,0.00016986,2]
[361746422,1747753834774,-603.08,0.00016986,2]
[361746423,1747753834786,-430.0,0.00016986,2]
[361746424,1747753834798,-401.41,0.00016986,2]
[361746425,1747753834807,-505.97,0.00016986,2]
[361746426,1747753834818,-430.0,0.00016986,2]
[361746427,1747753834830,-563.26,0.00016986,2]
[361746428,1747753834839,-1590.48,0.00016986,2]
[361746429,1747753834849,-153.0,0.00017,2]
[361746430,1747753834859,-153.0,0.00017,2]
[361746431,1747753834870,-153.0,0.00017,2]
[361746432,1747753834880,-153.0,0.00017,2]
[361746433,1747753834890,-311.8992567,0.00017,2]
[361746434,1747753834899,-151.0,0.00017065,2]
[361746435,1747753834910,-621.58661988,0.00017118,2]
[361746436,1747753834920,-160.0,0.00017119,2]
[361746437,1747753834929,-422.65292303,0.00017119,2]
[361746438,1747753834939,-160.0,0.00017119,2]
[361746439,1747753834949,-212.38718278,0.00017119,2]
[361746440,1747753834959,-160.0,0.00017119,2]
[361746441,1747753834970,-314.48519801,0.00017119,2]
[361746442,1747753834987,-5182.41492985,0.0001721,2]
[361746443,1747753834996,-151.0,0.0001726,2]
[361746444,1747753835006,-234.9851064,0.0001726,2]
[361746445,1747753835018,-430.0,0.0001726,2]
[361746446,1747753835029,-475.57,0.0001726,2]
[361746447,1747753835039,-430.0,0.0001726,2]
[361746448,1747753835049,-430.0,0.0001726,2]
[361746449,1747753835061,-430.0,0.0001726,2]
[361746450,1747753835071,-517.93,0.0001726,2]
[361746451,1747753835080,-802.98,0.0001726,2]
[361746452,1747753835090,-430.0,0.0001726,2]
[361746453,1747753835100,-1098.54,0.0001726,2]
[361746454,1747753835110,-430.0,0.0001726,2]
[361746455,1747753835120,-430.0,0.0001726,2]
[361746456,1747753835129,-430.0,0.0001726,2]
[361746457,1747753835140,-430.0,0.0001726,2]
[361746458,1747753835150,-1724.98,0.0001726,2]
[361746459,1747753835159,-430.0,0.0001726,2]
[361746460,1747753835169,-430.0,0.0001726,2]
[361746461,1747753835178,-430.0,0.0001726,2]
[361746462,1747753835188,-430.0,0.0001726,2]
[361746463,1747753835197,-430.0,0.0001726,2]
[361746464,1747753835208,-385.52220448,0.0001726,2]
[361746465,1747753835217,-186.63,0.0001726,2]
[361746466,1747753835227,-430.0,0.0001726,2]
[361746467,1747753835236,-707.57,0.0001726,2]
[361746468,1747753835246,-2982.33,0.0001726,2]
[361746469,1747753835255,-430.0,0.0001726,2]
[361746470,1747753835265,-896.57,0.0001726,2]
[361746471,1747753835276,-430.0,0.0001726,2]
[361746472,1747753835286,-430.0,0.0001726,2]
[361746473,1747753835296,-738.18,0.0001726,2]
[361746474,1747753835306,-734.47,0.0001726,2]
[361746475,1747753835315,-430.0,0.0001726,2]
[361746476,1747753835325,-2183.46,0.0001726,2]
[361746477,1747753835334,-430.0,0.0001726,2]
[361746478,1747753835344,-430.0,0.0001726,2]
[361746479,1747753835353,-999.29,0.0001726,2]
[361746480,1747753835362,-430.0,0.0001726,2]
[361746481,1747753835371,-603.08,0.0001726,2]
[361746482,1747753835381,-430.0,0.0001726,2]
[361746483,1747753835390,-505.97,0.0001726,2]
[361746484,1747753835400,-430.0,0.0001726,2]
[361746485,1747753835409,-563.26,0.0001726,2]
[361746486,1747753835419,-1590.48,0.0001726,2]
[361746487,1747753835624,-755.88111119,0.00017271,2]
[361746488,1747753835634,-500.0,0.00017284,2]
[361746489,1747753835644,-503.02853215,0.00017319,2]
[361746490,1747753835653,-181.20115032,0.00017324,2]
[361746491,1747753835663,-500.0,0.00017348,2]
[361746492,1747753835673,-500.0,0.00017348,2]
[361746493,1747753835682,-3572.70630483,0.00017521,2]
[361746596,1747753840402,-300.0,0.00016328,2]
[361746597,1747753840413,-1316.37182673,0.00017521,2]
[361746772,1747753843254,-200.46928311,0.0001678,2]
[361746773,1747753843264,-293.33679829,0.00017521,2]
[361746775,1747753843274,-151.0,0.00017533,2]
[361746776,1747753843283,-151.0,0.00017533,2]
[361746778,1747753843293,-232.103503,0.00017533,2]
[361746780,1747753843303,-151.0,0.00017533,2]
[361746782,1747753843312,-261.637592,0.00017533,2]
[361746784,1747753843322,-151.0,0.00017533,2]
[361746786,1747753843331,-151.0,0.00017533,2]
[361746788,1747753843340,-151.0,0.00017533,2]
[361746790,1747753843350,-318.517573,0.00017533,2]
[361746792,1747753843359,-500.0,0.00017533,2]
[361746794,1747753843368,-500.0,0.00017533,2]
[361746796,1747753843378,-500.0,0.00017533,2]
[361746797,1747753843388,-500.0,0.00017533,2]
[361746799,1747753843398,-500.0,0.00017533,2]
[361746801,1747753843407,-500.0,0.00017533,2]
[361746803,1747753843417,-500.0,0.00017533,2]
[361746804,1747753843426,-500.0,0.00017533,2]
[361746806,1747753843435,-500.0,0.00017533,2]
[361746808,1747753843445,-500.0,0.00017533,2]
[361746810,1747753843456,-500.0,0.00017533,2]
[361746812,1747753843465,-500.0,0.00017533,2]
[361746814,1747753843474,-480.82271321,0.00017533,2]
[361746816,1747753843489,-500.0,0.00017533,2]
[361746818,1747753843499,-318.89395176,0.00017533,2]
[361746820,1747753843516,-181.10604824,0.00017533,2]
[361746822,1747753843528,-378.15395176,0.00017533,2]
[361746825,1747753843544,-167.0039665,0.00017533,2]
[361746827,1747753843554,-500.0,0.00017533,2]
[361746829,1747753843563,-267.02220653,0.00017533,2]
[361746831,1747753843573,-500.0,0.00017533,2]
[361746833,1747753843583,-500.0,0.00017533,2]
[361746835,1747753843592,-500.0,0.00017533,2]
[361746837,1747753843602,-500.0,0.00017533,2]
[361746838,1747753843611,-500.0,0.00017533,2]
[361746839,1747753843621,-300.0,0.00017533,2]
[361746841,1747753843631,-151.0,0.00017534,2]
[361746843,1747753843640,-430.0,0.00017534,2]
[361746845,1747753843650,-475.57,0.00017534,2]
[361746847,1747753843659,-430.0,0.00017534,2]
[361746849,1747753843668,-430.0,0.00017534,2]
[361746851,1747753843678,-151.0,0.00017534,2]
[361746853,1747753843688,-274.200462,0.00017534,2]
[361746854,1747753843698,-517.93,0.00017534,2]
[361746856,1747753843708,-802.98,0.00017534,2]
[361746858,1747753843717,-151.0,0.00017534,2]
[361746860,1747753843727,-151.0,0.00017534,2]
[361746861,1747753843736,-430.0,0.00017534,2]
[361746863,1747753843746,-1098.54,0.00017534,2]
[361746865,1747753843755,-430.0,0.00017534,2]
[361746867,1747753843764,-430.0,0.00017534,2]
[361746869,1747753843774,-430.0,0.00017534,2]
[361746871,1747753843785,-389.75,0.00017534,2]
[361746873,1747753843795,-1724.98,0.00017534,2]
[361746875,1747753843805,-430.0,0.00017534,2]
[361746876,1747753843814,-430.0,0.00017534,2]
[361746878,1747753843823,-430.0,0.00017534,2]
[361746880,1747753843832,-430.0,0.00017534,2]
[361746882,1747753843842,-478.49927275,0.00017534,2]
[361746884,1747753843851,-430.0,0.00017534,2]
[361746886,1747753843863,-707.57,0.00017534,2]
[361746888,1747753843872,-151.0,0.00017534,2]
[361746890,1747753843881,-2982.33,0.00017534,2]
[361746892,1747753843891,-151.0,0.00017534,2]
[361746894,1747753843900,-430.0,0.00017534,2]
[361746896,1747753843909,-896.57,0.00017534,2]
[361746898,1747753843918,-430.0,0.00017534,2]
[361746900,1747753843927,-430.0,0.00017534,2]
[361746901,1747753843936,-738.18,0.00017534,2]
[361746904,1747753843948,-734.47,0.00017534,2]
[361746906,1747753843957,-2183.46,0.00017534,2]
[361746907,1747753843967,-430.0,0.00017534,2]
[361746909,1747753843978,-430.0,0.00017534,2]
[361746911,1747753843989,-430.0,0.00017534,2]
[361746913,1747753843998,-999.29,0.00017534,2]
[361746915,1747753844008,-430.0,0.00017534,2]
[361746917,1747753844018,-603.08,0.00017534,2]
[361746919,1747753844027,-430.0,0.00017534,2]
[361746921,1747753844036,-505.97,0.00017534,2]
[361746923,1747753844046,-430.0,0.00017534,2]
[361746925,1747753844061,-563.26,0.00017534,2]
[361746927,1747753844073,-1590.48,0.00017534,2]
[361746929,1747753844087,-151.0,0.00017534,2]
[361746931,1747753844099,-151.0,0.00017554,2]
[361746934,1747753844112,-208.489906,0.00017554,2]
[361746936,1747753844123,-215.138576,0.00017554,2]
[361746938,1747753844134,-215.138576,0.00017554,2]
[361746940,1747753844147,-151.0,0.00017554,2]
[361746943,1747753844159,-155.1124,0.00017554,2]
[361746945,1747753844171,-500.0,0.00017555,2]
[361746947,1747753844183,-973.47295933,0.0001756,2]
[361746949,1747753844196,-500.0,0.00017682,2]
[361746951,1747753844208,-500.0,0.00017718,2]